bitfinex/quotes_SOLUSD_20241218
["timestamp","ask_amount","ask_price","bid_price","bid_amount"]
[1734553910450,46.59850707,209.5,209.43,46.59850707]
[1734553910629,46.59850707,209.48,209.39,46.59850707]
[1734553910829,0.12549,209.5,209.34,46.59850707]
[1734553911151,0.12549,209.48,209.29,12.6781154]
[1734553911328,0.12549,209.45,209.36,46.59850707]
[1734553911924,41.9296,209.57,209.29,12.6781154]
[1734553911925,23.776884,209.61,209.43,46.59850707]
[1734553912241,13.295,209.66,209.48,46.59850707]
[1734553912551,46.59850707,209.6,209.5,46.59850707]
[1734553912946,0.12549,209.56,209.48,46.59850707]
[1734553913150,46.59850707,209.6,209.52,46.59850707]
[1734553913527,13.295,209.66,209.59,23.776884]
[1734553913846,13.295,209.66,209.45,11.9357]
[1734553913847,13.295,209.66,209.6,46.59850707]
[1734553914023,13.295,209.66,209.52,46.59850707]
[1734553914227,0.12549,209.59,209.3,35.8336]
[1734553914452,0.12549,209.59,209.31,0.71619858]
[1734553914749,30.0,209.63,209.36,2.90645476]
[1734553914952,13.295,209.66,209.37,0.84161726]
[1734553915335,13.295,209.66,209.54,46.59850707]
[1734553915336,46.59850707,209.63,209.54,46.59850707]
[1734553915523,46.59850707,209.62,209.54,20.0]
[1734553915722,46.59850707,209.63,209.55,46.59850707]
[1734553915941,0.12549,209.57,209.19,23.12307857]
[1734553916144,0.12549,209.57,209.37,0.71601746]
[1734553916647,13.295,209.66,209.37,1.24045716]
[1734553916850,13.295,209.66,209.42,0.12549]
[1734553917050,13.0547,209.78,209.47,20.0]
[1734553917351,8.0787,209.87,209.77,46.59850707]
[1734553917554,8.0787,209.87,209.8,46.59850707]
[1734553917740,0.12549,209.83,209.76,46.59850707]
[1734553917939,8.0787,209.87,209.81,46.59850707]
[1734553918136,8.0787,209.87,209.79,46.59850707]
[1734553918335,13.0547,209.91,209.81,46.59850707]
[1734553918648,31.92773596,210.09,209.9,46.59850707]
[1734553918649,7.9872,210.0,209.9,46.59850707]
[1734553918956,7.9872,210.0,209.91,46.59850707]
[1734553919133,0.12549,209.96,209.89,46.59850707]
[1734553919333,46.59850707,209.92,209.83,46.59850707]
[1734553919755,46.59850707,209.97,209.87,46.59850707]
[1734553920058,7.9872,210.0,209.93,46.59850707]
[1734553920622,7.9872,210.0,209.91,46.59850707]
[1734553920827,46.59850707,209.95,209.86,46.59850707]
[1734553921051,46.59850707,209.99,209.88,46.59850707]
[1734553921364,0.12549,209.92,209.83,46.59850707]
[1734553921527,0.12549,209.92,209.85,46.59850707]
[1734553921729,0.12549,209.88,209.79,46.59850707]
[1734553921925,0.12549,209.79,209.65,46.59850707]
[1734553922128,46.59850707,209.71,209.63,46.59850707]
[1734553922324,46.59850707,209.71,209.61,46.59850707]
[1734553922531,0.12549,209.67,209.61,46.59850707]
[1734553922740,0.12549,209.65,209.57,46.59850707]
[1734553922937,20.0,209.55,209.47,46.59850707]
[1734553923137,0.12549,209.54,209.47,46.59850707]
[1734553923325,46.59850707,209.6,209.49,46.59850707]
[1734553923529,0.12549,209.59,209.55,46.59850707]
[1734553923839,20.0,209.65,209.57,46.59850707]
[1734553924033,20.0,209.56,209.47,46.59850707]
[1734553924230,0.12549,209.55,209.45,46.59850707]
[1734553924541,0.12549,209.5,209.43,46.59850707]
[1734553924743,12.7258,209.59,209.49,46.59850707]
[1734553924958,12.7258,209.59,209.4,2.8228658]
[1734553924959,20.0,209.56,209.48,46.59850707]
[1734553925133,12.7258,209.59,209.4,3.53890837]
[1734553925331,12.04664797,209.59,209.51,46.59850707]
[1734553925629,8.2744,209.76,209.53,0.12549]
[1734553925829,8.2744,209.76,209.48,0.12549]
[1734553926030,7.5033,209.87,209.5,0.12549]
[1734553926265,30.0,209.85,209.52,23.776884]
[1734553926473,0.12549,209.77,209.54,23.776884]
[1734553926646,46.59850707,209.68,209.58,46.59850707]
[1734553926834,46.59850707,209.64,209.55,23.776884]
[1734553927030,46.59850707,209.7,209.6,46.59850707]
[1734553927364,8.1583,209.7,209.41,59.691]
[1734553927528,8.1583,209.7,209.46,2.87199629]
[1734553927732,8.1583,209.81,209.48,5.28389]
[1734553927957,2.7941427,209.91,209.5,0.12549]
[1734553928130,8.1583,209.92,209.52,0.12549]
[1734553928333,46.59850707,209.85,209.75,46.59850707]
[1734553928636,8.1583,209.92,209.84,46.59850707]
[1734553928844,46.59850707,209.9,209.8,46.59850707]
[1734553929043,8.1583,209.92,209.68,23.776884]
[1734553929236,8.1583,209.92,209.73,20.0]
[1734553929429,0.12549,209.91,209.74,0.71475259]
[1734553929675,30.12549,209.91,209.62,11.9259]
[1734553929969,0.12549,209.8,209.53,2.84537723]
[1734553930256,46.59850707,209.69,209.58,46.59850707]
[1734553930454,46.59850707,209.73,209.62,46.59850707]
[1734553930651,46.59850707,209.74,209.56,0.71526018]
[1734553930837,19.9679,209.9,209.57,35.7874]
[1734553931041,19.9679,209.9,209.59,5.28389]
[1734553931230,2.81661555,209.99,209.61,1.83139]
[1734553931431,12.4609,210.0,209.63,0.12549]
[1734553931634,15.279233,210.0,209.65,0.12549]
[1734553931866,15.279233,210.0,209.66,0.71473019]
[1734553932040,46.59850707,209.82,209.72,46.59850707]
[1734553932359,0.12549,209.87,209.68,46.59850707]
[1734553932534,46.59850707,209.81,209.72,46.59850707]
[1734553932855,46.59850707,209.79,209.7,46.59850707]
[1734553933073,0.0675024,209.94,209.71,0.71504361]
[1734553933231,0.0675024,209.94,209.72,0.12549]
[1734553933427,0.12549,209.92,209.69,0.71477935]
[1734553933646,0.12549,209.92,209.69,23.776884]
[1734553933873,30.0,209.89,209.6,2.80402093]
[1734553934078,46.59850707,209.75,209.66,46.59850707]
[1734553934375,0.12549,209.66,209.54,46.59850707]
[1734553934539,0.12549,209.58,209.49,46.59850707]
[1734553934736,46.59850707,209.56,209.42,0.5244397]
[1734553934941,23.776884,209.63,209.42,0.5244397]
[1734553935141,23.902374,209.61,209.42,0.5244397]
[1734553936151,46.59850707,209.52,209.42,47.12294677]
[1734553936347,46.59850707,209.54,209.46,46.59850707]
[1734553936575,46.59850707,209.54,209.44,46.59850707]
[1734553936946,46.59850707,209.56,209.46,46.59850707]
[1734553937145,46.59850707,209.6,209.52,46.59850707]
[1734553937379,7.7507,209.62,209.42,1.24025542]
[1734553937684,52.07209233,209.86,209.59,46.59850707]
[1734553937685,46.59850707,209.68,209.59,46.59850707]
[1734553937979,30.0,209.75,209.45,0.84088861]
[1734553938150,32.4705,209.76,209.43,35.8114]
[1734553938151,0.12549,209.57,209.48,46.59850707]
[1734553938343,46.59850707,209.66,209.43,0.71592577]
[1734553938542,46.59850707,209.66,209.42,0.5244397]
[1734553938984,0.12549,209.65,209.42,0.5244397]
[1734553939149,11.9252,209.64,209.42,0.5244397]
[1734553939356,46.59850707,209.56,209.47,46.59850707]
[1734553939566,46.59850707,209.6,209.49,46.59850707]
[1734553939748,58.86930707,209.72,209.58,46.59850707]
[1734553939958,58.86930707,209.72,209.59,0.84081554]
[1734553939959,12.2708,209.72,209.59,0.84081554]
[1734553940162,12.4802,209.85,209.59,0.84081554]
[1734553940558,12.4802,209.85,209.6,23.776884]
[1734553940750,12.4802,209.85,209.62,23.902374]
[1734553940956,12.4802,209.85,209.68,2.92484543]
[1734553941161,0.0675024,209.94,209.68,2.92484543]
[1734553941162,46.59850707,209.91,209.81,46.59850707]
[1734553941490,0.0675024,209.94,209.89,46.59850707]
[1734553941767,0.0675024,209.94,209.85,46.59850707]
[1734553941986,0.0675024,209.94,209.79,23.902374]
[1734553942193,0.0675024,209.94,209.88,0.12549]
[1734553942388,0.0675024,209.94,209.77,46.59850707]
[1734553942389,0.0675024,209.94,209.9,23.776884]
[1734553942547,0.0675024,209.94,209.92,23.776884]
[1734553942749,0.0675024,209.94,209.93,24.61666663]
[1734553943050,0.0675024,209.94,209.93,24.49117663]
[1734553943262,7.7964,210.09,209.94,23.902374]
[1734553943495,46.59850707,210.07,210.0,46.59850707]
[1734553943716,47.19044917,210.15,210.06,46.59850707]
[1734553943930,0.5919421,210.15,210.07,23.776884]
[1734553944206,0.5919421,210.15,209.95,0.71371285]
[1734553944593,0.5919421,210.15,209.96,23.902374]
[1734553944903,0.5919421,210.15,209.98,23.776884]
[1734553945092,0.5919421,210.15,210.14,46.59850707]
[1734553945286,4.21e-05,210.15,210.14,70.50088107]
[1734553945497,54.39490707,210.33,210.15,35.798574]
[1734553945812,46.59850707,210.27,210.17,46.59850707]
[1734553946014,46.59850707,210.29,210.19,46.59850707]
[1734553946315,46.59850707,210.25,210.17,46.59850707]
[1734553946518,0.12549,210.31,210.15,46.59850707]
[1734553946812,46.59850707,210.18,210.09,46.59850707]
[1734553947019,46.59850707,210.21,210.11,46.59850707]
[1734553947296,46.59850707,210.31,210.13,0.12549]
[1734553947479,7.7964,210.33,210.24,46.59850707]
[1734553947795,0.12549,210.31,210.22,46.59850707]
[1734553947973,7.7964,210.33,210.26,46.59850707]
[1734553948315,0.5919421,210.36,210.13,11.8973]
[1734553948316,0.5919421,210.36,210.32,46.59850707]
[1734553948499,46.59850707,210.35,210.28,46.59850707]
[1734553948681,0.5919421,210.36,210.33,46.59850707]
[1734553948885,0.5919421,210.36,210.24,23.902374]
[1734553949098,0.5919421,210.36,210.25,0.71299768]
[1734553949372,0.5919421,210.36,210.14,0.71312227]
[1734553949580,0.5919421,210.36,210.19,2.86634717]
[1734553949780,0.5919421,210.36,210.21,0.12549]
[1734553950099,0.5919421,210.36,210.35,46.59850707]
[1734553950797,0.5919421,210.36,210.35,70.50088107]
[1734553950980,4.21e-05,210.36,210.35,71.21353289]
[1734553951181,4.21e-05,210.36,210.35,71.08804289]
[1734553951394,4.21e-05,210.36,210.35,46.59850707]
[1734553951827,4.21e-05,210.36,210.21,46.59850707]
[1734553951828,0.1255321,210.36,210.16,11.8956]
[1734553952099,46.59850707,210.3,210.21,46.59850707]
[1734553952305,46.59850707,210.26,210.17,46.59850707]
[1734553952487,46.59850707,210.28,210.19,46.59850707]
[1734553952691,7.9397,210.35,210.2,0.71334817]
[1734553952886,4.21e-05,210.36,210.21,0.12549]
[1734553953088,4.21e-05,210.36,210.13,2.84415592]
[1734553953089,4.21e-05,210.36,210.23,0.12549]
[1734553953325,4.21e-05,210.36,210.24,12.60401049]
[1734553953608,4.21e-05,210.36,210.25,0.12549]
[1734553953814,4.21e-05,210.36,210.35,70.37539107]
[1734553954017,4.21e-05,210.36,210.35,71.08813538]
[1734553954179,4.21e-05,210.36,210.35,47.31125138]
[1734553954376,4.21e-05,210.36,210.35,71.08813538]
[1734553954582,4.21e-05,210.36,210.35,46.59850707]
[1734553954881,4.21e-05,210.36,210.33,46.59850707]
[1734553955201,4.21e-05,210.36,210.35,46.59850707]
[1734553956095,4.21e-05,210.36,210.2,11.893]
[1734553956290,0.12549,210.3,210.23,46.59850707]
[1734553956490,4.21e-05,210.36,210.15,11.896]
[1734553956693,46.59850707,210.35,210.17,12.02059]
[1734553956900,46.59850707,210.26,210.19,19.015741]
[1734553957211,0.12549,210.19,210.09,46.59850707]
[1734553957502,46.59850707,210.2,210.12,46.59850707]
[1734553957911,0.12549,210.17,210.08,46.59850707]
[1734553958202,46.59850707,210.12,210.03,46.59850707]
[1734553958403,46.59850707,210.14,210.05,46.59850707]
[1734553958586,0.12549,210.18,210.09,46.59850707]
[1734553958782,0.12549,210.16,210.09,46.59850707]
[1734553958983,46.59850707,210.24,210.14,46.59850707]
[1734553959527,46.59850707,210.18,210.1,46.59850707]
[1734553959685,46.59850707,210.22,210.12,46.59850707]
[1734553959886,11.8859,210.34,210.18,46.59850707]
[1734553960087,46.59850707,210.24,210.16,46.59850707]
[1734553960286,0.12549,210.23,210.02,2.87456156]
[1734553960485,30.0,210.27,210.02,2.87456156]
[1734553960486,0.12549,210.26,210.02,2.87456156]
[1734553960685,0.12549,210.26,210.03,0.71394781]
[1734553960887,0.12549,210.24,210.03,0.71394781]
[1734553961086,0.12549,210.24,209.91,23.8194]
[1734553961330,30.0,210.19,210.02,46.59850707]
[1734553961485,30.0,210.19,209.94,11.8906]
[1734553961486,0.12549,210.02,209.94,46.59850707]
[1734553961689,0.12549,209.97,209.88,46.59850707]
[1734553961925,46.59850707,209.98,209.9,46.59850707]
[1734553962321,0.12549,209.97,209.9,46.59850707]
[1734553962511,0.12549,209.97,209.88,46.59850707]
[1734553962823,46.59850707,209.98,209.9,46.59850707]
[1734553963034,12.9496,210.01,209.9,46.59850707]
[1734553963206,59.54810707,210.01,209.93,46.59850707]
[1734553963398,46.59850707,209.99,209.91,46.59850707]
[1734553963905,59.04810707,210.01,209.91,46.59850707]
[1734553964103,46.59850707,210.01,209.93,46.59850707]
[1734553964301,46.59850707,209.97,209.89,46.59850707]
[1734553964524,46.59850707,210.03,209.93,46.59850707]
[1734553965018,46.59850707,209.97,209.88,46.59850707]
[1734553965224,46.59850707,210.04,209.95,46.59850707]
[1734553965394,2.87972867,210.14,209.86,19.043341]
[1734553965395,46.59850707,209.96,209.86,19.043341]
[1734553965596,46.59850707,209.96,209.86,46.59850707]
[1734553965795,46.59850707,209.98,209.88,46.59850707]
[1734553966010,46.59850707,210.02,209.92,46.59850707]
[1734553966211,46.59850707,210.08,210.0,46.59850707]
[1734553966437,7.7205,210.18,210.06,46.59850707]
[1734553966438,46.59850707,210.17,210.06,46.59850707]
[1734553966627,8.1632,210.31,210.07,0.71371945]
[1734553966827,30.0,210.17,209.89,0.71364543]
[1734553967074,11.8962,210.15,209.85,35.7397]
[1734553967206,0.12549,210.05,209.82,2.91932589]
[1734553967411,0.12549,210.05,209.85,0.71466894]
[1734553967648,0.12549,210.05,209.86,0.12549]
[1734553967811,46.59850707,210.0,209.91,46.59850707]
[1734553968011,8.1382,210.06,209.87,0.71418495]
[1734553968012,46.59850707,210.02,209.93,46.59850707]
[1734553968237,46.59850707,209.96,209.87,46.59850707]
[1734553968552,46.59850707,209.94,209.85,46.59850707]
[1734553968759,46.59850707,209.96,209.85,46.59850707]
[1734553968920,46.59850707,209.94,209.85,46.59850707]
[1734553969121,46.59850707,209.88,209.84,0.5919]
[1734553969428,46.59850707,209.86,209.84,0.5919]
[1734553969933,46.59850707,209.76,209.67,2.89327019]
[1734553970116,46.59850707,209.71,209.63,0.5919421]
[1734553970448,46.59850707,209.69,209.63,0.5919421]
[1734553970607,46.59850707,209.71,209.63,0.5919421]
[1734553970813,46.59850707,209.71,209.63,47.19044917]
[1734553971110,46.59850707,209.73,209.63,0.5919421]
[1734553971340,12.4683,209.78,209.63,0.5093842]
[1734553971341,46.59850707,209.71,209.63,0.5093842]
[1734553971538,46.59850707,209.68,209.63,0.5093842]
[1734553971759,46.72399707,209.64,209.63,0.5093842]
[1734553971911,46.59850707,209.67,209.63,0.5093842]
[1734553972348,46.59850707,209.71,209.63,0.5093842]
[1734553972554,46.59850707,209.67,209.63,0.5093842]
[1734553972727,46.59850707,209.75,209.64,46.72399707]
[1734553972932,46.59850707,209.75,209.67,46.59850707]
[1734553973235,12.4683,209.78,209.7,46.59850707]
[1734553973435,12.4683,209.78,209.71,23.776884]
[1734553974157,46.59850707,209.73,209.63,1.22445792]
[1734553974456,46.59850707,209.75,209.64,46.59850707]
[1734553974630,46.59850707,209.75,209.65,0.71514786]
[1734553975026,0.12549,209.65,209.63,0.5093842]
[1734553975457,46.59850707,209.59,209.49,46.59850707]
[1734553975748,11.9198,209.74,209.55,46.59850707]
[1734553975949,23.776884,209.73,209.53,46.59850707]
[1734553976122,46.59850707,209.64,209.53,46.59850707]
[1734553976314,46.59850707,209.68,209.57,46.59850707]
[1734553976514,46.59850707,209.66,209.57,46.59850707]
[1734553976712,46.59850707,209.64,209.55,46.59850707]
[1734553976931,46.59850707,209.64,209.53,46.59850707]
[1734553977549,46.59850707,209.66,209.58,23.776884]
[1734553977753,46.59850707,209.59,209.46,46.59850707]
[1734553977964,46.59850707,209.63,209.54,46.59850707]
[1734553978154,46.59850707,209.63,209.55,0.71551308]
[1734553978450,19.078606,209.74,209.56,0.12549]
[1734553978663,19.643,209.8,209.58,0.12549]
[1734553978832,19.643,209.8,209.59,0.71522087]
[1734553979159,11.9178,209.77,209.47,0.71534621]
[1734553979320,11.9178,209.77,209.48,35.836674]
[1734553979522,46.59850707,209.72,209.63,23.776884]
[1734553979763,46.59850707,209.72,209.65,23.776884]
[1734553979952,46.59850707,209.67,209.58,49.52560551]
[1734553980126,46.59850707,209.67,209.6,46.59850707]
[1734553980329,46.59850707,209.69,209.6,46.59850707]
[1734553980540,46.59850707,209.69,209.58,2.92709844]
[1734553980541,46.59850707,209.65,209.56,46.59850707]
[1734553980739,46.59850707,209.67,209.58,46.59850707]
[1734553980949,46.59850707,209.71,209.62,46.59850707]
[1734553981360,46.59850707,209.69,209.6,46.59850707]
[1734553981536,46.59850707,209.77,209.58,46.59850707]
[1734553981537,46.59850707,209.67,209.58,46.59850707]
[1734553981847,46.59850707,209.6,209.45,46.59850707]
[1734553982035,46.59850707,209.58,209.49,46.59850707]
[1734553982237,46.59850707,209.6,209.51,46.59850707]
[1734553982544,11.9183,209.76,209.57,46.59850707]
[1734553982853,11.9183,209.76,209.46,0.12549]
[1734553982854,46.59850707,209.76,209.66,46.59850707]
[1734553983168,46.59850707,209.72,209.47,0.71509952]
[1734553983373,46.59850707,209.64,209.54,46.59850707]
[1734553983556,46.59850707,209.6,209.51,46.59850707]
[1734553983764,46.59850707,209.66,209.56,46.59850707]
[1734553983942,46.59850707,209.72,209.58,0.12549]
[1734553984143,59.06680707,209.78,209.68,46.59850707]
[1734553984333,46.59850707,209.84,209.75,46.59850707]
[1734553984543,7.6008,209.91,209.81,46.59850707]
[1734553984812,46.59850707,209.95,209.85,46.59850707]
[1734553984978,46.59850707,209.95,209.87,46.59850707]
[1734553985276,8.159,210.02,209.91,46.59850707]
[1734553985277,46.59850707,210.0,209.91,46.59850707]
[1734553985573,46.59850707,209.99,209.9,46.59850707]
[1734553985781,31.0817,210.07,209.9,0.71434034]
[1734553985980,12.0318,210.07,210.0,46.59850707]
[1734553986188,12.0318,210.07,209.98,46.59850707]
[1734553986341,46.59850707,210.04,209.95,23.776884]
[1734553986674,46.59850707,210.04,209.95,46.59850707]
[1734553986850,46.59850707,210.0,209.91,46.59850707]
[1734553987043,46.59850707,210.02,209.93,46.59850707]
[1734553987243,46.59850707,210.0,209.92,23.776884]
[1734553987570,0.12549,209.92,209.82,46.59850707]
[1734553987771,46.59850707,209.83,209.73,46.59850707]
[1734553987942,46.59850707,209.76,209.68,0.71463549]
[1734553988261,46.59850707,209.78,209.64,2.89276055]
[1734553988438,13.2618,209.85,209.67,0.71511792]
[1734553988855,23.776884,209.84,209.56,0.71498765]
[1734553989079,0.12549,209.83,209.59,2.91399127]
[1734553989278,20.0,209.79,209.6,0.71508045]
[1734553989485,46.59850707,209.71,209.61,46.59850707]
[1734553989659,46.59850707,209.73,209.65,46.59850707]
[1734553989855,46.59850707,209.71,209.61,46.59850707]
[1734553990059,46.59850707,209.72,209.61,46.59850707]
[1734553990296,46.59850707,209.68,209.59,46.59850707]
[1734553990497,46.59850707,209.7,209.62,46.59850707]
[1734553990795,46.59850707,209.63,209.54,46.59850707]
[1734553991299,46.59850707,209.65,209.56,46.59850707]
[1734553991602,7.9653,209.73,209.64,46.59850707]
[1734553991766,8.0968,209.86,209.72,46.59850707]
[1734553991969,59.86030707,209.85,209.75,46.59850707]
[1734553992164,46.59850707,209.83,209.73,46.59850707]
[1734553992390,46.59850707,209.77,209.58,20.0]
[1734553992701,46.59850707,209.78,209.69,46.59850707]
[1734553992998,8.0968,209.86,209.76,66.59850707]
[1734553993203,46.59850707,209.85,209.76,66.59850707]
[1734553993495,24.1464,209.95,209.67,0.12549]
[1734553993795,46.59850707,209.79,209.71,46.59850707]
[1734553994001,46.59850707,209.72,209.63,46.59850707]
[1734553994296,46.59850707,209.88,209.64,0.7153394]
[1734553994604,24.1464,209.95,209.65,0.12549]
[1734553994779,12.2387,209.95,209.67,0.12549]
[1734553994982,12.2387,209.95,209.69,0.12549]
[1734553995301,46.59850707,209.93,209.84,20.0]
[1734553995809,0.12549,209.9,209.81,46.59850707]
[1734553996104,0.12549,209.84,209.58,11.9286]
[1734553996306,0.12549,209.84,209.59,0.71505405]
[1734553996776,23.902374,209.84,209.58,2.79849653]
[1734553997109,46.59850707,209.73,209.63,46.59850707]
[1734553997406,46.59850707,209.71,209.63,46.59850707]
[1734553997608,46.59850707,209.69,209.61,46.59850707]
[1734553997772,46.59850707,209.73,209.65,46.59850707]
[1734553998105,20.0,209.7,209.52,11.9316]
[1734553998307,20.0,209.66,209.53,0.71562184]
[1734553998604,30.0,209.76,209.49,0.71546448]
[1734553998810,43.902374,209.72,209.49,0.71546448]
[1734553999109,46.59850707,209.59,209.5,46.59850707]
[1734553999270,46.59850707,209.61,209.52,46.59850707]
[1734553999474,46.59850707,209.59,209.5,46.59850707]
[1734553999711,12.3238,209.66,209.56,46.59850707]
[1734553999911,46.59850707,209.64,209.45,0.71580255]
[1734554000202,12.3238,209.66,209.45,0.71580255]
[1734554000407,12.3238,209.76,209.46,0.12549]
[1734554000569,12.3238,209.76,209.48,0.12549]
[1734554000772,0.12549,209.75,209.49,0.71551024]
[1734554000979,30.12549,209.75,209.47,19.073601]
[1734554001181,46.59850707,209.69,209.58,46.59850707]
[1734554001405,46.59850707,209.71,209.6,46.59850707]
[1734554001707,46.59850707,209.67,209.58,46.59850707]
[1734554002012,46.59850707,209.63,209.55,46.59850707]
[1734554002207,46.59850707,209.69,209.61,46.59850707]
[1734554002705,46.59850707,209.75,209.65,46.59850707]
[1734554002889,12.3238,209.76,209.69,46.59850707]
[1734554003072,12.3238,209.76,209.56,0.71515892]
[1734554003073,12.3238,209.76,209.72,23.776884]
[1734554003275,12.3238,209.76,209.66,46.59850707]
[1734554003574,35.88229,209.75,209.5,46.59850707]
[1734554003780,46.59850707,209.61,209.47,2.90261306]
[1734554003998,46.59850707,209.65,209.55,46.59850707]
[1734554004308,46.59850707,209.65,209.57,46.59850707]
[1734554004486,46.59850707,209.75,209.64,46.59850707]
[1734554004697,46.59850707,209.73,209.62,46.59850707]
[1734554004894,46.59850707,209.71,209.62,46.59850707]
[1734554005094,46.59850707,209.65,209.56,46.59850707]
[1734554005287,0.12549,209.66,209.57,46.59850707]
[1734554005494,46.59850707,209.65,209.55,46.59850707]
[1734554006078,46.59850707,209.58,209.49,46.59850707]
[1734554006478,46.59850707,209.6,209.51,46.59850707]
[1734554006698,46.59850707,209.64,209.53,46.59850707]
[1734554006981,46.59850707,209.54,209.44,46.59850707]
[1734554007178,46.59850707,209.48,209.4,46.59850707]
[1734554007386,0.12549,209.55,209.26,19.091543]
[1734554007601,23.902374,209.53,209.29,2.81617732]
[1734554007776,12.6573,209.57,209.29,3.53247861]
[1734554007973,20.0,209.54,209.29,3.53247861]
[1734554008177,0.12549,209.48,209.29,3.53247861]
[1734554008404,46.59850707,209.44,209.34,46.59850707]
[1734554008684,46.59850707,209.48,209.38,46.59850707]
[1734554009115,46.59850707,209.5,209.4,46.59850707]
[1734554009426,46.59850707,209.54,209.44,46.59850707]
[1734554009612,46.59850707,209.61,209.53,46.59850707]
[1734554009833,46.59850707,209.63,209.51,46.59850707]
[1734554010029,11.924,209.66,209.46,23.776884]
[1734554010389,11.924,209.66,209.47,0.71576278]
[1734554010692,11.924,209.66,209.42,23.776884]
[1734554010693,0.12549,209.65,209.42,23.776884]
[1734554010910,46.59850707,209.59,209.49,20.0]
[1734554011122,46.59850707,209.65,209.55,23.776884]
[1734554011325,12.0771,209.67,209.55,23.776884]
[1734554011326,58.67560707,209.67,209.58,46.59850707]
[1734554011527,46.59850707,209.61,209.52,46.59850707]
[1734554011840,46.59850707,209.62,209.52,20.0]
[1734554012141,46.59850707,209.56,209.45,46.59850707]
[1734554012304,46.59850707,209.5,209.41,46.59850707]
[1734554012643,46.59850707,209.46,209.37,46.59850707]
[1734554012806,46.59850707,209.46,209.35,46.59850707]
[1734554013130,46.59850707,209.46,209.37,46.59850707]
[1734554013628,46.59850707,209.44,209.34,46.59850707]
[1734554013996,46.59850707,209.4,209.3,46.59850707]
[1734554014238,46.59850707,209.42,209.32,46.59850707]
[1734554014729,54.24400707,209.5,209.4,46.59850707]
[1734554014936,46.59850707,209.48,209.38,46.59850707]
[1734554015299,7.6455,209.5,209.36,46.59850707]
[1734554015526,7.6455,209.5,209.34,46.59850707]
[1734554015735,46.59850707,209.43,209.34,46.59850707]
[1734554015934,46.59850707,209.4,209.32,46.59850707]
[1734554016134,46.59850707,209.42,209.32,46.59850707]
[1734554016339,46.59850707,209.44,209.34,46.59850707]
[1734554016536,46.59850707,209.5,209.41,46.59850707]
[1734554016832,59.32570707,209.56,209.44,0.12549]
[1734554017002,12.7272,209.56,209.49,46.59850707]
[1734554017207,54.18250707,209.61,209.44,0.71574933]
[1734554017407,46.59850707,209.58,209.48,46.59850707]
[1734554017631,46.59850707,209.56,209.48,46.59850707]
[1734554017925,46.59850707,209.58,209.48,46.59850707]
[1734554018236,46.59850707,209.52,209.43,2.92285223]
[1734554018408,46.59850707,209.48,209.38,46.59850707]
[1734554018828,46.59850707,209.46,209.36,49.46384208]
[1734554019449,46.59850707,209.46,209.38,46.59850707]
[1734554019746,46.59850707,209.46,209.36,49.46384208]
[1734554020223,46.59850707,209.46,209.36,50.17999849]
[1734554020421,20.0,209.41,209.28,0.71613777]
[1734554020736,46.59850707,209.42,209.32,46.59850707]
[1734554020916,46.59850707,209.38,209.29,2.81922617]
[1734554021235,46.59850707,209.4,209.3,46.59850707]
[1734554021537,46.59850707,209.42,209.32,46.59850707]
[1734554021733,2.89655155,209.57,209.39,0.12549]
[1734554021909,46.59850707,209.54,209.44,46.59850707]
[1734554022107,46.59850707,209.47,209.34,0.71601758]
[1734554022309,46.59850707,209.44,209.34,46.59850707]
[1734554022614,46.59850707,209.44,209.35,46.59850707]
[1734554023027,46.59850707,209.48,209.37,46.59850707]
[1734554023229,46.59850707,209.46,209.37,46.59850707]
[1734554023421,46.59850707,209.44,209.36,0.71617452]
[1734554023622,46.59850707,209.4,209.31,46.59850707]
[1734554023824,46.59850707,209.42,209.33,46.59850707]
[1734554024025,11.9308,209.54,209.29,3.53561079]
[1734554024026,46.59850707,209.4,209.31,46.59850707]
[1734554024436,46.59850707,209.36,209.27,46.59850707]
[1734554024619,46.59850707,209.36,209.25,46.59850707]
[1734554024935,46.59850707,209.36,209.24,111.9476]
[1734554024936,46.59850707,209.28,209.24,100.0]
[1734554025147,46.59850707,209.32,209.24,100.0]
[1734554025633,0.8801576,209.31,209.27,46.59850707]
[1734554025840,0.8801576,209.31,209.26,46.59850707]
[1734554026213,46.59850707,209.27,209.24,100.0]
[1734554026414,0.8801576,209.26,209.24,100.0]
[1734554026912,12.0918,209.47,209.26,0.12549]
[1734554027124,12.0918,209.47,209.28,0.12549]
[1734554027325,12.0918,209.47,209.29,0.7161811]
[1734554027522,46.59850707,209.49,209.4,46.59850707]
[1734554027720,7.9764,209.52,209.42,46.59850707]
[1734554028043,12.0918,209.56,209.48,46.59850707]
[1734554028229,46.59850707,209.55,209.46,46.59850707]
[1734554028432,46.59850707,209.51,209.44,2.89579293]